fUST/lending_fUST_20240922
["ID","MTS","AMOUNT","RATE_DAILY","PERIOD"]
[338877318,1726983152600,500.0,0.00025,30]
[338877327,1726984035144,-823.44568887,0.00020999,2]
[338877328,1726984035165,-300.0,0.00020999,2]
[338877329,1726984035186,-500.0,0.00021,30]
[338877330,1726984035349,-500.0,0.00021,30]
[338877331,1726984035370,-500.0,0.00021,30]
[338877332,1726984035390,-900.0,0.00021,30]
[338877333,1726984035412,-249.41197487,0.00021,30]
[338877334,1726984038156,-250.58802513,0.00021,30]
[338877335,1726984038179,-500.0,0.00021,30]
[338877336,1726984038200,-500.0,0.00021,30]
[338877337,1726984038220,-1204.69408807,0.00021,2]
[338877338,1726984145166,-151.36378773,0.00020958,2]
[338877339,1726984145190,-1795.30591193,0.00021,2]
[338877340,1726984145210,-172.03693,0.00024032,2]
[338877341,1726984145232,-4685.6270228,0.00024303,2]
[338877342,1726984145253,-300.0,0.00024999,2]
[338877343,1726984145274,-500.0,0.00025,30]
[338877344,1726984145299,-688.81891132,0.00025,30]
[338877345,1726984145321,-500.0,0.00025,30]
[338877346,1726984145343,-979.80230678,0.00025,30]
[338877347,1726984145365,-500.0,0.00025,30]
[338877348,1726984145385,-500.0,0.00025,30]
[338877349,1726984145407,-500.0,0.00025,30]
[338877350,1726984216894,434.15680659,0.000269,2]
[338877360,1726984232230,-253.0,0.00026999,2]
[338877361,1726984232240,-300.0,0.00027,2]
[338877362,1726984232253,-1075.1995202,0.00027,3]
[338877363,1726984232266,-462.46397076,0.00027,3]
[338877364,1726984232288,-927.23829778,0.00027,3]
[338877365,1726984232299,-1669.69707867,0.00027,3]
[338877389,1726984238503,-20456.4310124,0.00027,3]
[338877417,1726984240271,-11899.97012019,0.00027,3]
[338877418,1726984240281,-152.537,0.00027,15]
[338877419,1726984240290,-300.0,0.00028,2]
[338877420,1726984240300,-838.98014188,0.00028278,2]
[338877421,1726984240309,-500.0,0.00028326,5]
[338877422,1726984240318,-500.0,0.00028326,5]
[338877423,1726984240327,-317.66,0.00028338,3]
[338877424,1726984240337,-33814.53699454,0.00028348,3]
[338877425,1726984240349,-7258.29300546,0.00028348,3]
[338877426,1726984240358,-34227.36,0.00028348,3]
[338877427,1726984240368,-35344.2464866,0.00028358,4]
[338877428,1726984240378,-33006.4094083,0.00028358,4]
[338877429,1726984240387,-35344.2464866,0.00028368,4]
[338877430,1726984240396,-33006.4094083,0.00028368,4]
[338877431,1726984240410,-151.0,0.00028368,7]
[338877432,1726984240423,-653.056959,0.00028368,7]
[338877433,1726984240433,-151.0,0.00028368,7]
[338877434,1726984240442,-653.056959,0.00028368,7]
[338877435,1726984240453,-151.0,0.00028368,7]
[338877436,1726984240462,-220.958125,0.00028368,7]
[338877437,1726984240471,-220.958125,0.00028368,7]
[338877438,1726984240481,-374.063824,0.00028368,7]
[338877439,1726984240491,-374.063824,0.00028368,7]
[338877440,1726984240500,-429.566033,0.00028368,7]
[338877441,1726984240511,-429.566033,0.00028368,7]
[338877442,1726984240521,-151.0,0.00028368,7]
[338877443,1726984240530,-500.0,0.00028373,5]
[338877444,1726984240539,-164.26890214,0.00028373,5]
[338877445,1726984240548,-500.0,0.00028373,5]
[338877446,1726984240558,-150.0,0.00028373,5]
[338877447,1726984240567,-500.0,0.00028373,5]
[338877448,1726984240576,-638.14017677,0.00028373,5]
[338877449,1726984240586,-559.65289071,0.00028377,2]
[338877450,1726984240595,-500.0,0.00028377,2]
[338877451,1726984240604,-504.90573222,0.00028377,2]
[338877452,1726984240614,-500.0,0.00028377,2]
[338877453,1726984240624,-183.79869757,0.00028377,2]
[338877454,1726984240634,-500.0,0.00028377,2]
[338877455,1726984240643,-500.0,0.00028377,2]
[338877456,1726984240653,-500.0,0.00028377,2]
[338877457,1726984240663,-500.0,0.00028377,2]
[338877458,1726984240673,-500.0,0.00028377,2]
[338877459,1726984240683,-500.0,0.00028377,2]
[338877460,1726984240692,-500.0,0.00028377,2]
[338877461,1726984240701,-500.0,0.00028377,2]
[338877462,1726984240710,-500.0,0.00028377,2]
[338877463,1726984240720,-500.0,0.00028377,2]
[338877464,1726984240729,-500.0,0.00028377,2]
[338877465,1726984240739,-500.0,0.00028377,2]
[338877466,1726984240748,-500.0,0.00028377,2]
[338877467,1726984240759,-500.0,0.00028377,2]
[338877468,1726984240768,-500.0,0.00028377,2]
[338877469,1726984240778,-500.0,0.00028377,2]
[338877470,1726984240787,-500.0,0.00028377,2]
[338877471,1726984240796,-500.0,0.00028377,2]
[338877472,1726984240807,-500.0,0.00028377,2]
[338877473,1726984240817,-500.0,0.00028377,2]
[338877474,1726984240826,-500.0,0.00028377,2]
[338877475,1726984240835,-176.91249261,0.00028377,2]
[338877476,1726984240845,-500.0,0.00028377,2]
[338877477,1726984240858,-500.0,0.00028377,2]
[338877478,1726984240868,-500.0,0.00028377,2]
[338877479,1726984240878,-500.0,0.00028377,2]
[338877480,1726984240887,-500.0,0.00028377,2]
[338877481,1726984240897,-500.0,0.00028377,2]
[338877482,1726984240906,-500.0,0.00028377,2]
[338877483,1726984240915,-500.0,0.00028377,2]
[338877484,1726984240925,-500.0,0.00028377,2]
[338877485,1726984240934,-500.0,0.00028377,2]
[338877486,1726984240944,-500.0,0.00028377,2]
[338877487,1726984240953,-500.0,0.00028377,2]
[338877488,1726984240962,-500.0,0.00028377,2]
[338877489,1726984240971,-500.0,0.00028377,2]
[338877490,1726984240980,-500.0,0.00028377,2]
[338877491,1726984240990,-500.0,0.00028377,2]
[338877492,1726984240999,-500.0,0.00028377,2]
[338877493,1726984241010,-500.0,0.00028377,2]
[338877494,1726984241019,-515.17200812,0.00028377,2]
[338877495,1726984241028,-500.0,0.00028377,2]
[338877496,1726984241038,-500.0,0.00028377,2]
[338877497,1726984241047,-500.0,0.00028377,2]
[338877498,1726984241057,-500.0,0.00028377,2]
[338877499,1726984241066,-500.0,0.00028377,2]
[338877500,1726984241075,-500.0,0.00028377,2]
[338877501,1726984241084,-500.0,0.00028377,2]
[338877502,1726984241094,-500.0,0.00028377,2]
[338877503,1726984241104,-500.0,0.00028377,2]
[338877504,1726984241113,-500.0,0.00028377,2]
[338877505,1726984241122,-500.0,0.00028377,2]
[338877506,1726984241131,-500.0,0.00028377,2]
[338877507,1726984241141,-500.0,0.00028377,2]
[338877508,1726984241150,-500.0,0.00028377,2]
[338877509,1726984241159,-500.0,0.00028377,2]
[338877510,1726984241169,-500.0,0.00028377,2]
[338877511,1726984241178,-500.0,0.00028377,2]
[338877512,1726984241187,-200.0,0.00028377,2]
[338877513,1726984241199,-500.0,0.00028377,2]
[338877514,1726984241209,-499.99999999,0.00028377,2]
[338877515,1726984241220,-500.0,0.00028377,2]
[338877516,1726984241231,-154.314086,0.00028377,7]
[338877517,1726984241242,-653.056959,0.00028377,7]
[338877518,1726984241254,-653.056959,0.00028377,7]
[338877519,1726984241271,-151.0,0.00028377,7]
[338877520,1726984241280,-220.958125,0.00028377,7]
[338877521,1726984241290,-220.958125,0.00028377,7]
[338877522,1726984241300,-374.063824,0.00028377,7]
[338877523,1726984241310,-374.063824,0.00028377,7]
[338877524,1726984241319,-429.566033,0.00028377,7]
[338877525,1726984241329,-429.566033,0.00028377,7]
[338877526,1726984241339,-153.918625,0.00028377,7]
[338877527,1726984241348,-20906.95380006,0.00028377,3]
[338877528,1726984241358,-22186.4022643,0.00028378,3]
[338877537,1726984243433,-232.86177083,0.00028368,7]
[338877538,1726984243443,-16629.41537417,0.00028378,3]
[338877540,1726984243629,-79.0146983,0.00028378,3]
[338877553,1726985229161,-300.0,0.00020999,2]
[338877554,1726985229182,-300.0,0.00020999,2]
[338877555,1726985229202,-500.0,0.00021,30]
[338877556,1726985229223,-500.0,0.00021,30]
[338877557,1726985229244,-500.0,0.00021,30]
[338877558,1726985229265,-500.0,0.00021,30]
[338877559,1726985229286,-500.0,0.00021,30]
[338877560,1726985229307,-500.0,0.00021,30]
[338877561,1726985229328,-283.16349664,0.00021,30]
[338877562,1726985253146,-216.83650336,0.00021,30]
[338877563,1726985253170,-500.0,0.00021,30]
[338877564,1726985253191,-989.03192254,0.00021,30]
[338877565,1726985253212,-500.0,0.00021,30]
[338877566,1726985253233,-942.64747004,0.00021,30]
[338877567,1726985253253,-4607.350719,0.00021,2]
[338877568,1726985253274,-537.44502169,0.00025,30]
[338877569,1726985253295,-500.0,0.00025,30]
[338877570,1726985253317,-490.33040153,0.00025,30]
[338877571,1726985348132,-302.51602579,0.00024726,2]
[338877572,1726985348156,-302.51602579,0.00024973,2]
[338877573,1726985348179,-9.66959847,0.00025,30]
[338877574,1726985348202,-500.0,0.00025,30]
[338877575,1726985348224,-500.0,0.00025,30]
[338877576,1726985348246,-500.0,0.00025,30]
[338877577,1726985348272,-500.0,0.00025,30]
[338877578,1726985348296,-500.0,0.00025,30]
[338877579,1726985348330,-500.0,0.00025,30]
[338877580,1726985348368,-500.0,0.00025,30]
[338877581,1726985348406,-500.0,0.00025,30]
[338877582,1726985348430,-500.0,0.00025,30]
[338877583,1726985348453,-500.0,0.00025,30]
[338877584,1726985348474,-215.976448,0.0002509,2]
[338877585,1726985348495,-453.77403868,0.0002522,4]
[338877586,1726985348516,-302.33485133,0.00025468,4]
[338877587,1726985348537,-349.8385552,0.00025652,2]
[338877588,1726985348558,-500.00448323,0.00026,10]
[338877590,1726985361114,-961.3879225,0.00026028,2]
[338877591,1726985361134,-660.0,0.00026301,2]
[338877593,1726985424040,453.72874281,0.00026169,4]
[338877594,1726985424099,455.87415907,0.00026431,6]
[338877650,1726985438710,-875.52,0.00027,14]
[338877651,1726985438720,-306.0,0.00027616,2]
[338877652,1726985438729,-416.8471861,0.00027624,2]
[338877653,1726985438739,-1000.0,0.00028,2]
[338877654,1726985438748,-244.0,0.00028,2]
[338877655,1726985438760,-184.89774299,0.00028104,2]
[338877656,1726985438770,-379.88720581,0.00028104,2]
[338877657,1726985438780,-500.0,0.00028173,5]
[338877658,1726985438790,-500.0,0.00028173,5]
[338877659,1726985438799,-164.26890214,0.00028173,5]
[338877660,1726985438810,-178.11,0.0002818,19]
[338877661,1726985438820,-15419.24405542,0.00028194,4]
[338877662,1726985438831,-3889.2,0.00028194,4]
[338877663,1726985438843,-500.0,0.00028194,4]
[338877676,1726985440484,-16191.52758338,0.00028194,4]
[338877677,1726985440496,-29530.9,0.00028194,3]
[338877678,1726985440505,-35437.08,0.00028202,3]
[338877679,1726985440516,-35999.9716388,0.00028204,4]
[338877680,1726985440526,-151.0,0.00028204,7]
[338877681,1726985440535,-151.0,0.00028204,7]
[338877682,1726985440544,-151.0,0.00028204,7]
[338877683,1726985440553,-151.0,0.00028204,7]
[338877684,1726985440562,-169.750738,0.00028204,7]
[338877685,1726985440571,-151.0,0.00028204,7]
[338877686,1726985440580,-151.0,0.00028204,7]
[338877687,1726985440590,-151.0,0.00028204,7]
[338877688,1726985440599,-35999.9716388,0.00028211,4]
[338877689,1726985440609,-500.0,0.00028212,2]
[338877690,1726985440621,-500.0,0.00028212,2]
[338877691,1726985440633,-324.73343877,0.00028212,2]
[338877692,1726985440642,-500.0,0.00028212,2]
[338877693,1726985440651,-500.0,0.00028212,2]
[338877694,1726985440661,-500.0,0.00028212,2]
[338877695,1726985440670,-500.0,0.00028212,2]
[338877696,1726985440680,-500.0,0.00028212,2]
[338877697,1726985440690,-500.0,0.00028212,2]
[338877698,1726985440699,-392.24590893,0.00028212,2]
[338877699,1726985440710,-500.0,0.00028212,2]
[338877700,1726985440721,-500.0,0.00028212,2]
[338877701,1726985440732,-500.0,0.00028212,2]
[338877702,1726985440742,-500.0,0.00028212,2]
[338877703,1726985440751,-250.0,0.00028212,2]
[338877704,1726985440763,-500.0,0.00028212,2]
[338877705,1726985440772,-500.0,0.00028212,2]
[338877706,1726985440782,-500.0,0.00028212,2]
[338877707,1726985440791,-500.0,0.00028212,2]
[338877708,1726985440800,-500.0,0.00028212,2]
[338877709,1726985440810,-478.34830322,0.00028212,2]
[338877710,1726985440823,-500.0,0.00028212,2]
[338877711,1726985440834,-500.0,0.00028212,2]
[338877712,1726985440844,-500.0,0.00028212,2]
[338877713,1726985440855,-500.0,0.00028212,2]
[338877714,1726985440865,-500.0,0.00028212,2]
[338877715,1726985440875,-500.0,0.00028212,2]
[338877716,1726985440883,-500.0,0.00028212,2]
[338877717,1726985440893,-500.0,0.00028212,2]
[338877718,1726985440902,-500.0,0.00028212,2]
[338877719,1726985440911,-500.0,0.00028212,2]
[338877720,1726985440922,-500.0,0.00028212,2]
[338877721,1726985440934,-500.0,0.00028212,2]
[338877722,1726985440946,-500.0,0.00028212,2]
[338877723,1726985440956,-500.0,0.00028212,2]
[338877724,1726985440965,-500.0,0.00028212,2]
[338877725,1726985440974,-500.0,0.00028212,2]
[338877726,1726985440984,-500.0,0.00028212,2]
[338877727,1726985440994,-500.0,0.00028212,2]
[338877728,1726985441003,-500.0,0.00028212,2]
[338877729,1726985441015,-500.0,0.00028212,2]
[338877730,1726985441025,-500.0,0.00028212,2]
[338877731,1726985441034,-500.0,0.00028212,2]
[338877732,1726985441044,-350.19146803,0.00028212,2]
[338877733,1726985441053,-500.0,0.00028212,2]
[338877734,1726985441062,-500.0,0.00028212,2]
[338877735,1726985441071,-500.0,0.00028212,2]
[338877736,1726985441081,-500.0,0.00028212,2]
[338877737,1726985441092,-500.0,0.00028212,2]
[338877738,1726985441101,-500.0,0.00028212,2]
[338877739,1726985441112,-500.0,0.00028212,2]
[338877740,1726985441121,-500.0,0.00028212,2]
[338877741,1726985441131,-500.0,0.00028212,2]
[338877742,1726985441141,-500.0,0.00028212,2]
[338877743,1726985441153,-500.0,0.00028212,2]
[338877744,1726985441162,-500.0,0.00028212,2]
[338877745,1726985441174,-500.0,0.00028212,2]
[338877746,1726985441185,-500.0,0.00028212,2]
[338877747,1726985441195,-500.0,0.00028212,2]
[338877748,1726985441205,-500.0,0.00028212,2]
[338877749,1726985441216,-500.0,0.00028212,2]
[338877750,1726985441226,-500.0,0.00028212,2]
[338877751,1726985441236,-500.0,0.00028212,2]
[338877752,1726985441247,-500.0,0.00028212,2]
[338877753,1726985441257,-500.0,0.00028212,2]
[338877754,1726985441266,-500.0,0.00028212,2]
[338877755,1726985441275,-261.67039946,0.00028212,2]
[338877756,1726985441284,-500.0,0.00028212,2]
[338877757,1726985441293,-500.0,0.00028212,2]
[338877758,1726985441302,-500.0,0.00028212,2]
[338877759,1726985441311,-500.0,0.00028212,2]
[338877760,1726985441321,-500.0,0.00028212,2]
[338877761,1726985441330,-500.0,0.00028212,2]
[338877762,1726985441339,-500.0,0.00028212,2]
[338877763,1726985441348,-300.0,0.00028212,2]
[338877764,1726985441358,-500.0,0.00028212,2]
[338877765,1726985441367,-500.0,0.00028212,2]
[338877766,1726985441376,-500.0,0.00028212,2]
[338877767,1726985441385,-500.0,0.00028212,2]
[338877768,1726985441395,-500.0,0.00028212,2]
[338877769,1726985441403,-70903.59311736,0.00028212,4]
[338877770,1726985441514,-40.23262777,0.00028212,4]
[338877779,1726985446418,-1056.11753247,0.00028212,4]
[338877780,1726985446427,-2451.26600275,0.00028213,4]
[338877781,1726985446439,-27431.10000004,0.00028213,4]
[338877782,1726985446450,-4287.80522436,0.00028213,4]
[338877785,1726985525809,161.11885,0.00026511,2]
[338877786,1726985535921,187.55718711,0.00025,30]
[338877791,1726986429129,-300.0,0.00020999,2]
[338877792,1726986429150,-500.0,0.00021,30]
[338877793,1726986429173,-500.0,0.00021,30]
[338877794,1726986429194,-500.0,0.00021,30]
[338877795,1726986429215,-500.0,0.00021,30]
[338877796,1726986429237,-4114.6702,0.00021,2]
[338877797,1726986429259,-420.0,0.00023099,2]
[338877798,1726986429280,-166.666666,0.00023818,2]
[338877799,1726986429301,-250.0,0.0002423,2]
[338877800,1726986429326,-225.000004,0.00024273,2]
[338877801,1726986429348,-274.7008079,0.00024315,2]
[338877802,1726986429371,-329.7021918,0.00024415,2]
[338877803,1726986429391,-166.666666,0.00024468,2]
[338877804,1726986429413,-200.0,0.00024658,15]
[338877805,1726986429434,-500.0,0.00025,30]
[338877806,1726986429458,-500.0,0.00025,30]
[338877807,1726986429481,-500.0,0.00025,30]
[338877808,1726986429503,-500.0,0.00025,30]
[338877809,1726986429525,-500.0,0.00025,30]
[338877810,1726986429551,-166.666666,0.00025117,2]
[338877811,1726986429710,-454.0,0.00025409,2]
[338877812,1726986429737,-225.000004,0.00025538,2]
[338877813,1726986429759,-251.9043,0.00025586,2]
[338877814,1726986429781,-166.666666,0.00025766,2]
[338877815,1726986429803,-380.0,0.00025936,2]
[338877816,1726986429826,-264.4424824,0.00025942,2]
[338877817,1726986443122,-510.2877365,0.00025942,2]
[338877818,1726986443144,-1979.86405371,0.00025956,2]
[338877819,1726986443176,-7393.85631539,0.00025956,2]
[338877820,1726986443196,-13.46822412,0.00026301,2]
[338877821,1726986550502,-500.0,0.00021,30]
[338877822,1726986550525,-500.0,0.00021,30]
[338877823,1726986550546,-500.0,0.00025,30]
[338877824,1726986550569,-500.0,0.00025,30]
[338877825,1726986563244,-646.53177588,0.00026301,2]
[338877826,1726986563266,-166.666666,0.00026416,2]
[338877827,1726986563288,-300.0,0.00026599,2]
[338877828,1726986563308,-9341.18815075,0.000266,2]
[338877831,1726986604869,4.01367139,0.00026467,6]
[338877868,1726986632627,-600.95798569,0.00026467,6]
[338877871,1726986632636,-604.97165708,0.00026732,6]
[338877873,1726986632645,-604.97165708,0.00026996,6]
[338877875,1726986632656,-383.46626,0.00027,120]
[338877877,1726986632665,-166.666666,0.00027065,2]
[338877879,1726986632674,-150.0,0.000272,2]
[338877881,1726986632683,-276.59261307,0.00027261,6]
[338877883,1726986632692,-153.0,0.00027616,2]
[338877885,1726986632702,-306.0,0.00027616,2]
[338877887,1726986632711,-27.58563399,0.00027984,2]
[338877910,1726986639262,-504.44592252,0.00027984,2]
[338877911,1726986639273,-169.32438735,0.00028,2]
[338877912,1726986639285,-130.67561265,0.00028,2]
[338877913,1726986639294,-153.4292237,0.00028027,2]
[338877914,1726986639304,-50.18986818,0.00028027,2]
[338877915,1726986639317,-260.80716722,0.00028027,2]
[338877916,1726986639326,-153.0,0.00028027,2]
[338877917,1726986639335,-153.0,0.00028027,2]
[338877918,1726986639344,-178.11,0.00028072,18]
[338877919,1726986639353,-300.0,0.00028072,2]
[338877920,1726986639363,-500.0,0.00028073,5]
[338877921,1726986639372,-500.0,0.00028073,5]
[338877922,1726986639382,-1665.83,0.00028074,3]
[338877923,1726986639391,-1665.83,0.00028074,3]
[338877924,1726986639401,-31683.91355346,0.00028084,4]
[338877945,1726986640609,-12958.70002024,0.00028084,4]
[338877946,1726986640619,-2745.19831258,0.00028084,4]
[338877948,1726986640629,-17089.64,0.00028084,3]
[338877949,1726986640639,-32588.8,0.00028084,3]
[338877950,1726986640649,-89285.2271473,0.00028094,4]
[338877951,1726986640658,-5490.39662516,0.00028094,4]
[338877952,1726986640668,-150.112233,0.000281,5]
[338877953,1726986640677,-150.112233,0.000281,6]
[338877954,1726986640686,-283.984484,0.000281,6]
[338877955,1726986640695,-151.0,0.00028102,7]
[338877956,1726986640705,-172.83186,0.00028102,7]
[338877957,1726986640715,-151.0,0.00028102,7]
[338877958,1726986640725,-44642.6135737,0.00028102,4]
[338877959,1726986640735,-2745.19831258,0.00028102,4]
[338877960,1726986640744,-500.0,0.00028102,2]
[338877961,1726986640753,-500.0,0.00028102,2]
[338877962,1726986640763,-500.0,0.00028102,2]
[338877963,1726986640772,-500.0,0.00028102,2]
[338877964,1726986640781,-500.0,0.00028102,2]
[338877965,1726986640790,-500.0,0.00028102,2]
[338877967,1726986640799,-392.24590893,0.00028102,2]
[338877968,1726986640809,-500.0,0.00028102,2]
[338877969,1726986640818,-324.73343877,0.00028102,2]
[338877970,1726986640827,-500.0,0.00028102,2]
[338877971,1726986640836,-500.0,0.00028102,2]
[338877972,1726986640846,-500.0,0.00028102,2]
[338877973,1726986640855,-500.0,0.00028102,2]
[338877974,1726986640865,-500.0,0.00028102,2]
[338877975,1726986640875,-500.0,0.00028102,2]
[338877976,1726986640885,-478.34830322,0.00028102,2]
[338877977,1726986640895,-500.0,0.00028102,2]
[338877978,1726986640904,-500.0,0.00028102,2]
[338877979,1726986640914,-500.0,0.00028102,2]
[338877980,1726986640924,-500.0,0.00028102,2]
[338877981,1726986640934,-500.0,0.00028102,2]
[338877982,1726986640943,-500.0,0.00028102,2]
[338877983,1726986640953,-500.0,0.00028102,2]
[338877984,1726986640963,-500.0,0.00028102,2]
[338877985,1726986640972,-500.0,0.00028102,2]
[338877986,1726986640982,-500.0,0.00028102,2]
[338877987,1726986640992,-500.0,0.00028102,2]
[338877988,1726986641002,-500.0,0.00028102,2]
[338877989,1726986641012,-500.0,0.00028102,2]
[338877990,1726986641021,-500.0,0.00028102,2]
[338877991,1726986641030,-500.0,0.00028102,2]
[338877992,1726986641039,-500.0,0.00028102,2]
[338877993,1726986641049,-500.0,0.00028102,2]
[338877994,1726986641059,-500.0,0.00028102,2]
[338877995,1726986641068,-646.17232123,0.00028102,2]
[338877996,1726986641077,-500.0,0.00028102,2]
[338877997,1726986641087,-500.0,0.00028102,2]
[338877998,1726986641096,-500.0,0.00028102,2]
[338877999,1726986641105,-500.0,0.00028102,2]
[338878000,1726986641114,-500.0,0.00028102,2]
[338878001,1726986641123,-500.0,0.00028102,2]
[338878002,1726986641133,-500.0,0.00028102,2]
[338878003,1726986641142,-511.67039946,0.00028102,2]
[338878004,1726986641151,-500.0,0.00028102,2]
[338878005,1726986641160,-500.0,0.00028102,2]
[338878006,1726986641170,-500.0,0.00028102,2]
[338878007,1726986641179,-500.0,0.00028102,2]
[338878008,1726986641188,-500.0,0.00028102,2]
[338878009,1726986641197,-500.0,0.00028102,2]
[338878010,1726986641207,-500.0,0.00028102,2]
[338878011,1726986641215,-500.0,0.00028102,2]
[338878012,1726986641225,-500.0,0.00028102,2]
[338878013,1726986641235,-500.0,0.00028102,2]
[338878014,1726986641249,-500.0,0.00028102,2]
[338878015,1726986641260,-500.0,0.00028102,2]
[338878016,1726986641272,-500.0,0.00028102,2]
[338878017,1726986641284,-500.0,0.00028102,2]
[338878018,1726986641295,-500.0,0.00028102,2]
[338878019,1726986641307,-500.0,0.00028102,2]
[338878020,1726986641319,-500.0,0.00028102,2]
[338878021,1726986641330,-500.0,0.00028102,2]
[338878022,1726986641343,-500.0,0.00028102,2]
[338878023,1726986641353,-500.0,0.00028102,2]
[338878024,1726986641366,-500.0,0.00028102,2]
[338878025,1726986641377,-500.0,0.00028102,2]
[338878026,1726986641388,-500.0,0.00028102,2]
[338878027,1726986641399,-500.0,0.00028102,2]
[338878028,1726986641410,-500.0,0.00028102,2]
[338878029,1726986641421,-500.0,0.00028102,2]
[338878030,1726986641431,-500.0,0.00028102,2]
[338878031,1726986641443,-500.0,0.00028102,2]
[338878032,1726986641455,-500.0,0.00028102,2]
[338878033,1726986641465,-500.0,0.00028102,2]
[338878034,1726986641477,-204.0191468,0.00028102,2]
[338878035,1726986641489,-500.0,0.00028102,2]
[338878036,1726986641500,-500.0,0.00028102,2]
[338878037,1726986641513,-500.0,0.00028102,2]
[338878038,1726986641524,-500.0,0.00028102,2]
[338878039,1726986641535,-500.0,0.00028102,2]
[338878040,1726986641548,-500.0,0.00028102,2]
[338878041,1726986641560,-151.0,0.00028103,7]
[338878042,1726986641570,-429.566033,0.00028103,7]
[338878043,1726986641583,-429.566033,0.00028103,7]
[338878044,1726986641594,-220.958125,0.00028103,7]
[338878045,1726986641605,-151.0,0.00028103,7]
[338878046,1726986641616,-220.958125,0.00028103,7]
[338878047,1726986641628,-374.063824,0.00028103,7]
[338878048,1726986641639,-374.063824,0.00028103,7]
[338878049,1726986641650,-151.0,0.00028103,7]
[338878050,1726986641672,-151.0,0.00028103,7]
[338878051,1726986641685,-151.0,0.00028103,7]
[338878052,1726986641697,-153.918625,0.00028103,7]
[338878053,1726986641708,-13026.88532578,0.00028103,3]
[338878054,1726986641723,-2667.14662687,0.00028103,3]
[338878055,1726986641736,-474.25173268,0.00028103,3]
[338878056,1726986641752,-598.0205773,0.00028103,3]
[338878057,1726986641765,-35309.76383362,0.00028103,3]
[338878058,1726986641777,-21276.88882215,0.00028103,3]
[338878059,1726986641788,-89285.2271473,0.00028103,4]
[338878060,1726986641801,-5490.39662516,0.00028103,4]
[338878061,1726986641812,-10980.7932503,0.00028104,4]
[338878062,1726986641824,-152.104047,0.00028104,7]
[338878063,1726986641836,-151.0,0.00028104,7]
[338878064,1726986641848,-151.0,0.00028104,7]
[338878065,1726986641859,-169.750738,0.00028104,7]
[338878066,1726986641872,-151.0,0.00028104,7]
[338878067,1726986641885,-151.0,0.00028104,7]
[338878068,1726986641898,-154.314086,0.00028104,7]
[338878069,1726986641910,-429.566033,0.00028104,7]
[338878070,1726986641922,-429.566033,0.00028104,7]
[338878071,1726986641933,-220.958125,0.00028104,7]
[338878072,1726986641944,-220.958125,0.00028104,7]
[338878073,1726986641955,-374.063824,0.00028104,7]
[338878074,1726986641965,-374.063824,0.00028104,7]
[338878075,1726986641974,-152.394574,0.00028104,7]
[338878076,1726986641985,-151.0,0.00028104,7]
[338878077,1726986641995,-2745.19831258,0.00028113,4]
[338878078,1726986642005,-151.0,0.00028113,7]
[338878079,1726986642016,-151.0,0.00028113,7]
[338878080,1726986642026,-215.793451,0.00028113,7]